Cogmind - Beta 16 @@@ ROGUE MODE // 2025.12.28 @ 14:35:59 Player: skilledspacepolice Result: Destroyed by G-50 Soldier with Heavy Laser Performance ------------- Evolutions (2) 1000 Regions Visited (5) 1000 Robots Destroyed (24) 120 Value Destroyed (787) 787 Prototype IDs (23) 460 Alien Tech Used (0) 0 Bonus (300) 300 TOTAL SCORE: 3667 Bonus ------- Aligned with FarCom 300 Cogmind --------- Core Integrity 0/550 Matter 284/300 Energy 100/100 System Corruption 0% Temperature Cool (14) Movement Core (200) Ox3 Location -8/Materials Parts ------- > --- POWER (1) -------- (None) > --- PROPULSION (2) --- (None) > --- UTILITY (6) ------ Medium Storage Unit Signal Interpreter Targeting Computer Targeting Computer > --- WEAPON (2) ------- Hammer > --- INVENTORY (10) --- Light Nuclear Core Improved Heat Sink Peak State ------------ > --- POWER ------------ Ion Engine > --- PROPULSION ------- Aluminum Leg Aluminum Leg > --- UTILITY ---------- Medium Storage Unit Signal Interpreter Targeting Computer Targeting Computer Targeting Computer Cloak of Protection > --- WEAPON ----------- Light Assault Rifle Heavy Assault Rifle > --- INVENTORY -------- Light Nuclear Core Improved Heat Sink Grenade Launcher Hammer Shock Trap Shock Trap [Rating: 20] Favorites ----------- Power Ion Engine Engine Ion Engine Propulsion Aluminum Leg Leg Aluminum Leg Hover Unit Improved Hover Unit Utility Signal Interpreter Device Cloak of Protection Storage Medium Storage Unit Processor Signal Interpreter Weapon EM Pulse Gun Energy Gun EM Pulse Gun Ballistic Gun Light Assault Rifle Launcher Grenade Launcher Impact Weapon Hammer Build | -11 -10 -10 -10 -9 -8 ------- Run | Yrd Mat Min Exi Min Mat Slots Evolved 4 | . . . . . 4 Power . | . . . . . . Propulsion . | . . . . . . Utility 4 | . . . . . 4 Weapon . | . . . . . . Parts Attached 28 | 6 11 . 1 5 5 Power 4 | 1 2 . . 1 . Engine 4 | 1 2 . . 1 . Core . | . . . . . . Reactor . | . . . . . . Propulsion 5 | 2 2 . . . 1 Treads . | . . . . . . Leg 4 | 2 2 . . . . Wheel . | . . . . . . Hover 1 | . . . . . 1 Flight . | . . . . . . Utility 9 | 1 2 . 1 1 4 Device 1 | . . . . . 1 Storage 3 | 1 . . 1 1 . Processor 5 | . 2 . . . 3 Hackware . | . . . . . . Protection . | . . . . . . Artifact . | . . . . . . Weapon 10 | 2 5 . . 3 . Energy Gun 4 | 1 3 . . . . Energy Cannon . | . . . . . . Ballistic Gun 4 | 1 . . . 3 . Ballistic Cannon . | . . . . . . Launcher 1 | . 1 . . . . Special Weapon . | . . . . . . Impact Weapon 1 | . 1 . . . . Slashing Weapon . | . . . . . . Piercing Weapon . | . . . . . . Special Melee Weapon . | . . . . . . Unidentified Prototypes . | . . . . . . Parts Lost 10 | . 1 . . . 9 Power 1 | . . . . . 1 Propulsion 3 | . . . . . 3 Utility 2 | . . . . . 2 Weapon 4 | . 1 . . . 3 Highest Loss Streak 9 | . 1 . . . 9 To Critical Strikes . | . . . . . . Average Backups 7 | . 5 8 8 9 4 Power 1 | . . 1 1 1 1 Propulsion . | . . 1 1 . . Utility 3 | . 1 4 4 5 1 Weapon 2 | . 2 2 2 2 1 Tool/Special . | . . . . . . Unused Backups 3 | . 1 . . . 2 Power 1 | . . . . . 1 Propulsion . | . . . . . . Utility 1 | . . . . . 1 Weapon 1 | . 1 . . . . Tool/Special . | . . . . . . Average Slot Usage (%) 97 | . 92 100 100 100 91 Engine 13 | . 13 14 14 14 8 Leg 26 | . 28 28 28 28 14 Storage 13 | . 14 14 14 14 9 Processor 14 | . 7 14 14 14 35 Energy Gun 15 | . 15 26 28 5 . Ballistic Gun 10 | . 9 . . 22 13 Peak Build Rating 20 | 6 8 8 9 10 20 Average Rating 9 | 4 7 7 8 9 17 On Entrance 6 | . 6 8 8 9 10 Avg Prop Armor Cover (%) . | . . . . . . Naked Turns . | . . . . . . Heaviest Build 27 | 14 15 14 19 19 27 Greatest Support 20 | 20 20 20 20 20 20 Greatest Overweight (x) 5 | 4 . . . . 5 Average Overweight (x) . | . . . . . 1 Largest Inventory Capacity 10 | 8 8 8 10 10 10 Average Capacity 9 | 7 8 8 9 10 10 Most Carried 10 | 4 8 8 10 10 9 Average Carried 7 | . 5 7 8 9 5 Final Capacity 10 | 8 8 8 10 10 10 Final Carried 10 | . 8 8 10 10 2 Class Distribution -------------------- 88% | Mutant 11% | Scavenger-Mutant Dominant Class ---------------- Mutant | -10/Materials Mutant | -10/Mines Mutant | -10/Exiles Mutant | -9/Mines Mutant | -8/Materials Resources | -11 -10 -10 -10 -9 -8 ----------- Run | Yrd Mat Min Exi Min Mat Matter Collected 661 | 187 295 . . 124 55 Remotely . | . . . . . . Salvage Created 839 | . 511 . . 216 112 Parts 51 | . 30 . . 13 8 Haulers Intercepted . | . . . . . . Recyclers Shooed . | . . . . . . Parts Field Recycled . | . . . . . . Retrieved Matter . | . . . . . . Parts Self-Destructed . | . . . . . . Prevented . | . . . . . . Parts Restored . | . . . . . . Kills | -11 -10 -10 -10 -9 -8 ------- Run | Yrd Mat Min Exi Min Mat Combat Hostiles Destroyed 21 | . 12 . . 7 2 Guns 12 | . 6 . . 4 2 AOE 8 | . 5 . . 3 . Classes Destroyed 5 | . 2 . . 2 1 Watcher 3 | . 3 . . . . Swarmer 3 | . . . . 3 . Grunt 15 | . 12 . . 3 . Duelist 1 | . . . . 1 . Sentry 2 | . . . . . 2 Best Kill Streak 6 | . 6 . . 3 2 Combat Bots Only 5 | . 5 . . 3 2 Max Kills in Single Turn 4 | . 4 . . 2 1 Gunslinging . | . . . . . . Exploded 4 | . 4 . . 2 . Melee . | . . . . . . Uniques/NPCs Destroyed . | . . . . . . Combat | -11 -10 -10 -10 -9 -8 -------- Run | Yrd Mat Min Exi Min Mat Hostile Shots Fired 196 | . 51 . . 21 124 Missed 42 | . 10 . . 8 24 Hits 154 | . 41 . . 13 100 Melee 1 | . . . . 1 . Projectile 153 | . 41 . . 12 100 Critical Strikes 5 | . . . . . 5 Damage Taken 2198 | . 509 . . 149 1540 Core 622 | . 37 . . 35 550 Absorbed by Shields . | . . . . . . Regen/Repaired (Parts) 42 | . 42 . . . . Core Remaining (%) 85 | 100 . . . 71 . Volleys Fired 60 | . 34 . . 16 10 Largest 2 | . 2 . . 2 2 Hottest 80 | . 80 . . 80 43 Shots Fired 114 | . 63 . . 32 19 Gun 108 | . 58 . . 32 18 Cannon . | . . . . . . Launcher 6 | . 5 . . . 1 Special . | . . . . . . Kinetic 49 | . 19 . . 12 18 Thermal . | . . . . . . Explosive 6 | . 5 . . . 1 Electromagnetic 59 | . 39 . . 20 . Robot Hit Streak 14 | . 8 . . 6 14 Robot Miss Streak 3 | . 3 . . 3 2 Penetration Max . | . . . . . . Secondary Targets 2 | . 1 . . 1 . Max Gunslinging Chain 1 | . 1 . . 1 . Shots Hit Robots 80 | . 42 . . 20 18 Core Hits 49 | . 25 . . 11 13 Critical Kills . | . . . . . . Critical Parts Destroyed . | . . . . . . Critical Strikes . | . . . . . . Melee Attacks 5 | . 1 2 . . 2 Impact 5 | . 1 2 . . 2 Slashing . | . . . . . . Piercing . | . . . . . . Sneak Attacks . | . . . . . . Combat Hostiles . | . . . . . . Follow-up Attacks . | . . . . . . Damage Inflicted 1867 | . 988 . . 396 483 Guns 928 | . 539 . . 232 157 Cannons . | . . . . . . Explosions 878 | . 449 . . 164 265 Melee 61 | . . . . . 61 Ramming . | . . . . . . Kinetic 387 | . 160 . . 70 157 Thermal 199 | . 35 . . 164 . Explosive 679 | . 414 . . . 265 Electromagnetic 541 | . 379 . . 162 . Impact 61 | . . . . . 61 Slashing . | . . . . . . Piercing . | . . . . . . Highest Corruption . | . . . . . . Average Corruption . | . . . . . . Corruption Purged . | . . . . . . Corruption Blocked . | . . . . . . Overload Shots . | . . . . . . Overflow Damage . | . . . . . . Projectiles . | . . . . . . Explosions . | . . . . . . Melee . | . . . . . . Knockbacks 1 | . . . . . 1 Impact 1 | . . . . . 1 Kinetic . | . . . . . . Secondary . | . . . . . . Self-Inflicted Damage 12 | . 12 . . . . Shots 1 | . 1 . . . . Rammed . | . . . . . . Targets Rammed . | . . . . . . Kicked . | . . . . . . Crushed . | . . . . . . Highest Temperature 241 | . 241 . . 90 42 Average Temperature 71 | . 100 . . 36 12 Received Heat Transfer 1248 | . 270 . . 24 954 Siege Activations . | . . . . . . Martial Activations . | . . . . . . Shielding Activations . | . . . . . . Robots Disrupted . | . . . . . . Combat Hostiles . | . . . . . . Robots Corrupted 1 | . 1 . . . . Combat Hostiles 1 | . 1 . . . . Parts Fried . | . . . . . . Impact Corruptions . | . . . . . . Robots Melted . | . . . . . . Combat Hostiles . | . . . . . . Parts Melted . | . . . . . . Heat Transferred 250 | . . . . 250 . Parts Sabotaged . | . . . . . . Parts Stolen . | . . . . . . Parts Stripped . | . . . . . . Power Chain Reactions 4 | . 1 . . 3 . Alert | -11 -10 -10 -10 -9 -8 ------- Run | Yrd Mat Min Exi Min Mat Maximum Alert Level 1 | . 1 . . . . Low Security (%) 99 | 100 99 100 . 100 100 Level 1 . | . . . . . . Level 2 . | . . . . . . Level 3 . | . . . . . . Level 4 . | . . . . . . Level 5 . | . . . . . . High Security . | . . . . . . Max Security . | . . . . . . Peak Influence 207 | . 207 58 . 72 70 Initial 58 | . . 58 . . . Average 36 | . 69 43 . 12 18 Influence Increases 741 | . 377 . . 172 192 Destroy 0b10 Robot/C 420 | . 240 . . 140 40 Destroy 0b10 Robot/NC 15 | . 15 . . . . Destroy Leader 96 | . 56 . . 20 20 Trap Triggered on 0b10 20 | . . . . . 20 Successful Hack 7 | . 7 . . . . Disable Machine 15 | . 15 . . . . Destroy Structure 48 | . 29 . . 12 7 Partial Spotted 15 | . 15 . . . . Lose Combat Pursuer 105 | . . . . . 105 Influence Decreases 704 | . 226 123 28 172 155 Entered New Map 121 | . . 93 28 . . Time Decay 483 | . 216 30 . 172 65 Lost Part 100 | . 10 . . . 90 Squads Dispatched 3 | . 2 . . . 1 Investigation 1 | . 1 . . . . Extermination . | . . . . . . Reinforcement 2 | . 1 . . . 1 Assault . | . . . . . . Garrison . | . . . . . . Intercept . | . . . . . . Searches Triggered . | . . . . . . Construction Impeded . | . . . . . . Haulers Reinforced . | . . . . . . Active Scanning Responses . | . . . . . . Cargo Convoy Interrupts . | . . . . . . Stealth | -11 -10 -10 -10 -9 -8 --------- Run | Yrd Mat Min Exi Min Mat Distress Signals 3 | . 1 . . . 2 Communications Jammed . | . . . . . . Distress Signals . | . . . . . . Times Spotted 43 | . 17 . . 5 21 Peak Tracking Total 10 | . 7 . . 3 10 Tactical Retreats 4 | . . . . . 4 Traps | -11 -10 -10 -10 -9 -8 ------- Run | Yrd Mat Min Exi Min Mat Traps Triggered 1 | . 1 . . . . Indirectly . | . . . . . . Trap Hack Attempts . | . . . . . . Triggered . | . . . . . . Disarmed . | . . . . . . Reprogrammed . | . . . . . . Reused 2 | . . . . . 2 Traps Extracted . | . . . . . . Installed 2 | . . . . . 2 Triggered 2 | . . . . . 2 Most Traps Carried 2 | . . . . 2 2 Machines | -11 -10 -10 -10 -9 -8 ---------- Run | Yrd Mat Min Exi Min Mat Machines Disabled 1 | . 1 . . . . Max in Single Turn 1 | . 1 . . . . Garrison Access 1 | . . . . . 1 Machines Repaired . | . . . . . . Machines Dismantled . | . . . . . . Machines Sabotaged . | . . . . . . Overloaded Fab Kills . | . . . . . . Hacking | -11 -10 -10 -10 -9 -8 --------- Run | Yrd Mat Min Exi Min Mat Machines Accessed 11 | . 5 . 5 . 1 Terminals 3 | . 3 . . . . Fabricators . | . . . . . . Repair Stations 1 | . 1 . . . . Recycling Units 1 | . 1 . . . . Scanalyzers . | . . . . . . Garrison Access 1 | . . . . . 1 Total Hacks 63 | . 12 . 50 . 1 Successful 58 | . 7 . 50 . 1 Failed 5 | . 5 . . . . Catastrophic . | . . . . . . Database Lockouts . | . . . . . . Manual 1 | . . . 1 . . Terminals 6 | . 6 . . . . Fabricators . | . . . . . . Repair Stations 4 | . 4 . . . . Recycling Units 2 | . 2 . . . . Scanalyzers . | . . . . . . Garrison Access 1 | . . . . . 1 Terminal Hacks 52 | . 2 . 50 . . Record 50 | . 1 . 49 . . Alert Level 1 | . 1 . . . . Proto ID Catalog 1 | . . . 1 . . Fabricator Hacks . | . . . . . . Repair Station Hacks 4 | . 4 . . . . Scan Component 2 | . 2 . . . . Repair 2 | . 2 . . . . Recycling Unit Hacks 1 | . 1 . . . . Retrieve Components 1 | . 1 . . . . Scanalyzer . | . . . . . . Garrison Access Hacks 1 | . . . . . 1 Seal Access 1 | . . . . . 1 Unauthorized Hacks . | . . . . . . Terminals . | . . . . . . Fabricators . | . . . . . . Repair Stations . | . . . . . . Recycling Units . | . . . . . . Scanalyzers . | . . . . . . Garrison Access . | . . . . . . Data Cores Recovered . | . . . . . . Used . | . . . . . . Hacking Detections 4 | . 4 . . . . Full Trace Events 1 | . 1 . . . . Feedback Events . | . . . . . . Feedback Blocked . | . . . . . . Robot Schematics Acquired . | . . . . . . Robots Built . | . . . . . . Authchips . | . . . . . . Time . | . . . . . . Total Robot Build Rating . | . . . . . . Part Schematics Acquired . | . . . . . . Parts Built . | . . . . . . Authchips . | . . . . . . Time . | . . . . . . Total Part Build Rating . | . . . . . . Part Studies Acquired . | . . . . . . Parts Repaired 2 | . 2 . . . . Time 62 | . 62 . . . . Parts Recycled . | . . . . . . Recycled Matter . | . . . . . . Retrieved Matter . | . . . . . . Retrieved Components 4 | . 4 . . . . Parts Scanalyzed . | . . . . . . Part Schematics Acquired . | . . . . . . Parts Damaged . | . . . . . . Bothacking | -11 -10 -10 -10 -9 -8 ------------ Run | Yrd Mat Min Exi Min Mat Used RIF Installer . | . . . . . . Robots Hacked . | . . . . . . Non-combat . | . . . . . . Combat . | . . . . . . Robot Hacks Applied . | . . . . . . Relay Couplers Released . | . . . . . . Fabnet Peak Effective % . | . . . . . . Robots Rewired . | . . . . . . Allies Hacked . | . . . . . . Hacks Repelled . | . . . . . . Allies | -11 -10 -10 -10 -9 -8 -------- Run | Yrd Mat Min Exi Min Mat Total Allies 1 | . . . . 1 . Largest Group 1 | . . . . 1 . Highest-Rated Group 13 | . . . . 13 . Highest-Rated Ally 13 | . . . . 13 . Total Orders . | . . . . . . Ally Attacks 3 | . . . . 3 . Total Damage 49 | . . . . 49 . Kills . | . . . . . . Allies Corrupted . | . . . . . . Allies Melted . | . . . . . . Intel | -11 -10 -10 -10 -9 -8 ------- Run | Yrd Mat Min Exi Min Mat Active Infowar (turns) 30 | . . . . . 30 Cloaking 30 | . . . . . 30 Robot Analysis Total . | . . . . . . Derelict Logs Recovered 3 | . . 1 . 2 . Drone Launches . | . . . . . . Drone Recoveries . | . . . . . . Exploration | -11 -10 -10 -10 -9 -8 ------------- Run | Yrd Mat Min Exi Min Mat Turns Passed 2918 | 58 767 77 933 813 270 Spaces Moved 2063 | 38 457 58 774 622 114 Core 25 | 16 . . . . 9 Treads . | . . . . . . Legs 2028 | 22 457 58 774 622 95 Wheels . | . . . . . . Hover 10 | . . . . . 10 Flight . | . . . . . . Fastest Speed 50 | 50 120 120 120 120 190 Average Speed 124 | 122 120 120 120 120 197 Slowest Speed 300 | 250 120 120 120 120 300 Overloaded Moves . | . . . . . . Propulsion Burnouts . | . . . . . . Robots Hopped . | . . . . . . Potential Cave-ins . | . . . . . . Cave-ins Triggered . | . . . . . . Exploration Rate (%) 49 | 3 80 13 94 97 11 Regions Visited 5 Branch Regions 3 Pre-discovered Areas 1 | . . . 1 . . Known Exits Taken 4 | . 1 1 1 1 . Unknown Exits Taken 1 | 1 . . . . . Scrap Searched 2 | . . . . 2 . Spaces Dug . | . . . . . . Terrain Destroyed 57 | . 33 . . 17 7 Melee . | . . . . . . Projectile . | . . . . . . AOE 57 | . 33 . . 17 7 Terrain Rammed . | . . . . . . Walls Destroyed . | . . . . . . Machines Disabled . | . . . . . . Actions | -11 -10 -10 -10 -9 -8 --------- Run | Yrd Mat Min Exi Min Mat Total 2299 | 49 611 62 778 660 139 Wait 88 | . 83 . . 4 1 Move 2058 | 37 456 57 773 621 114 Hop . | . . . . . . Pick Up 31 | 6 16 1 2 5 1 Fast Attach 7 | . 4 . . 3 . Attach 21 | 6 5 1 . 2 7 Detach . | . . . . . . Swap 7 | . 4 . 2 1 . Drop 20 | . 8 1 1 8 2 Fire 60 | . 34 . . 16 10 Melee 5 | . 1 2 . . 2 Ram . | . . . . . . Kick . | . . . . . . Crush . | . . . . . . Escape Stasis . | . . . . . . Rewire . | . . . . . . Trap 2 | . . . . . 2 Miscellaneous . | . . . . . . Route ------- -11/Scrapyard -10/Materials (discovered 3 exits: [*Mat x2] / *Min) -10/Mines -10/Exiles (discovered 2 exits: *Min x2) -9/Mines (discovered 2 exits: *Mat x2) -8/Materials (discovered 2 exits: Fac x2) History --------- Turn | Location | Event 17 | -11/Scrapyard | Discovered new exit (range 16) 59 | -11/Scrapyard | Entered Materials 211 | -10/Materials | Discovered new exit (range 13) 314 | -10/Materials | Build established: Mutant 338 | -10/Materials | Repaired Corrupted Aluminum Leg 366 | -10/Materials | Repaired EM Pulse Gun 389 | -10/Materials | Discovered new exit (range 16) 507 | -10/Materials | Discovered new exit (range 9) 793 | -10/Materials | Identified exit to Mines 826 | -10/Materials | Entered Mines 855 | -10/Mines | Learned location of 2 exits from Materials 862 | -10/Mines | Met a Derelict testing a Signal Generator 895 | -10/Mines | Discovered new exit (range 3) 898 | -10/Mines | Identified exit to Exiles 903 | -10/Mines | Entered Exiles 937 | -10/Exiles | Discovered new exit (range 14) 952 | -10/Exiles | Identified exit to Mines 976 | -10/Exiles | Met 8R-AWN 1003 | -10/Exiles | Met EX-HEX 1074 | -10/Exiles | Met EX-DEC 1125 | -10/Exiles | Visited The Gauntlet 1284 | -10/Exiles | Learned location of Zion (-7) 1346 | -10/Exiles | Discovered exit to Mines (range 15) 1468 | -10/Exiles | Met EX-BIN 1490 | -10/Exiles | Aligned with FarCom system 1491 | -10/Exiles | Given EX-Vault access code 1608 | -10/Exiles | Opened EX-Vault 1623 | -10/Exiles | Found Cloak of Protection 1648 | -10/Exiles | Warned to stay clear of 0b10 Research branches 1836 | -10/Exiles | Left Exiles lab with Cloak of Protection 1836 | -10/Exiles | Entered Mines 1863 | -9/Mines | Met a Derelict bent on vengeance 1881 | -9/Mines | Assisted by bots powering up and referring to "LRC-V3" 2078 | -9/Mines | Learned Materials terminal intel 2089 | -9/Mines | Discovered new exit (range 5) 2093 | -9/Mines | Identified exit to Materials 2311 | -9/Mines | Build established: Scavenger-Mutant 2321 | -9/Mines | Discovered exit to Materials (range 9) 2382 | -9/Mines | Found a hidden stash of uninstalled traps 2441 | -9/Mines | Learned Materials trap positions 2624 | -9/Mines | Build established: Mutant 2649 | -9/Mines | Entered Materials 2649 | -8/Materials | Evolved 4 slots: Utility x4 2650 | -8/Materials | Identified exit to Factory 2651 | -8/Materials | Loaded intel: 23 trap records 2652 | -8/Materials | Loaded intel: 12 terminal locations 2903 | -8/Materials | Core integrity fell below 50% 2914 | -8/Materials | Core integrity fell below 20% 2919 | -8/Materials | Destroyed by G-50 Soldier with Heavy Laser Last Messages --------------- R-06 Scavenger collects Hvy. Assault Rifle. Critical hit (Burn: +37). Lgt. Assault Rifle destroyed. Aluminum Leg destroyed. K-01 Serf collects debris. The floor emits a surge of raw power. Critical hit (Burn: +37). W-25 Informer sends out distress signal. K-01 Serf collects debris. Cloak of Protection destroyed. Imp. Hover Unit destroyed. G-47 Trooper knocked back. K-01 Serf collects debris. Ion Engine destroyed. K-01 Serf collects debris. Grenade Launcher destroyed. Critical hit (Burn: +37). G-47 Trooper destroyed. The unstable cave ceiling collapses. Targeting Computer destroyed. Map ----- +----------------------------------------------------+ | ???^?????????????????????????????????????????????? | | ?????????????????????????????????????????????????? | | ?????????????????????????????????????????????????? | | ?????????????????????????????????????????????????? | | ?????????????????????????????????????????????????? | | ?????????????????????????????????????????????????? | | ??????????????????????????????????"??????????????? | | ??????????????????????????????????T??????????????? | | ??????????????????????????????????"??????????????? | | ?????????????????????????????????????????????????? | | ??????????????????????????T??????????????????????? | | ???????????????????????????????^^????????????????? | | ??????????????s?s??????????????^^????????????????? | | ??????????????s????????????????^^????????????????? | | ?????????????????????????????????????????????????? | | ?????????????????????????????????????????????????? | | ??????????? ?????????????????????????????????????? | | ??????????? ???????????????????????????????????? | | ???##+???## ???????????????????????????????????? | | ???# ^??? ????????#####??????????????????????? | | ??## ^ ????????# ??????????????????????? | | ??? """^ ""????????# ??????????????????????? | | ??? """^ Y"#???????# ??????????????????????? | | ??? """ ""#???????+ #??????????????????????? | | ???# #???????# #??????????????????????? | | ???# #???????# @#??????????????????????? | | ???# ???####### #####??????????????????? | | ???? g gg [[#??????????????????? | | ????? ??????####### [[#??????????????????? | | ???####+######????????#= //#??????????????????? | | ???# !! #????????#% //#??????????????????? | | ???# """ !! #???????# !!#??????????????????? | | ???# """ #???????# ggggg!!#??????????????????? | | ???# """ #?####### ####??????????????????? | | ??## ### g #?????????????????????? | | ??# % [ / #?????????????????????? | | ??## ### w ##?????????????????????? | | ???# """T""" #?## ##### ##?????????????????????? | | ???##############+##### #??????????????????????? | | ?????????????# # #??????????????????????? | | ?????????????# """ # #############??????????? | | ?????????????# G" # ^ ???????? | | ?????????????# """ # ^ ^ ???????? | | ?????????????# # ########### ^"?????????? | | ?????????????#""" + #??????????????????????? | | ?????????????#""" # #??????????????????????? | | ?????????????#""" # #??????????????????????? | | ?????????????# # #??????????????????????? | | ?????????????########## #??????????????????????? | | ???????????????# # #??????????????????????? | +----------------------------------------------------+ Best States ------------- Heat Dissipation 31 Energy Generation 10 Energy Capacity 250 Matter Stores 300 Matter Capacity 300 Sight Range 16 Terrain Scan Density 10 Cloak Strength 5 Evasion (%) 55 Targeting Accuracy 15 Item Schematics ----------------- None Robot Schematics ------------------ None Fabricated ------------ Nothing Repaired ---------- Aluminum Leg | 96% | -10/Materials | Corrupted EM Pulse Gun | 13% | -10/Materials Studied --------- None Alien Tech Used ----------------- None Achievements -------------- Sixth Sense Throw Away The Key Tourist Challenges ------------ None Game ------ Seed TerrorSubatomicSaw Manual? 0 Play Time 00:47:55 Cumulative 5.6 hours Start 2025.12.27 @ 12:29:41 End 2025.12.28 @ 14:35:59 Sessions 3 Manual Loads 0 Difficulty Rogue Special Mode None Game No. 5 Rogue 5 Adventurer 0 Explorer 0 Win Type - Total 0 Types 0/0/0/0/0/0/0/0/0/0 Lore% 14 Gallery% 6 Achievement% 7 Wizard Run 0 Options --------- Layout 1 ASCII 0 Keyboard 0 Movement Mouse Keybinds 0 Fullscreen 1 Font 24/Smallcaps Map View 50x35 Zoom Use 0% Tactical HUD 0 Map Filters NONE Filters NONE Steam 1 RUN: a215689a-96e1-41f6-b3c4-831ccba0bfee